[Event "Early-Titled-Tuesday-Blitz-May-28-2024"]
[Site "Chess.com"]
[Date "2024.05.28"]
[Round "10"]
[White "ManMish2"]
[Black "jaskol95"]
[Result "0-1"]
[WhiteElo "2664"]
[BlackElo "2539"]
[TimeControl "180+1"]
[EndTime "9:58:53 PDT"]
[Termination "jaskol95 won by resignation"]

1. e4 {[%clk 0:02:58.3]} 1... d5 {[%clk 0:03:00.2]} 2. exd5 {[%clk 0:02:58.9]}
2... Nf6 {[%clk 0:03:00.9]} 3. d4 {[%clk 0:02:58.7]} 3... Bg4 {[%clk 0:03:01.6]}
4. f3 {[%clk 0:02:58.4]} 4... Bf5 {[%clk 0:03:02.3]} 5. c4 {[%clk 0:02:58.1]}
5... e6 {[%clk 0:03:01.5]} 6. g4 {[%clk 0:02:58.3]} 6... Nxg4 {[%clk 0:02:53.5]}
7. fxg4 {[%clk 0:02:57.4]} 7... Qh4+ {[%clk 0:02:54.1]} 8. Kd2 {[%clk
0:02:56.8]} 8... Qf2+ {[%clk 0:02:42.9]} 9. Be2 {[%clk 0:02:41.1]} 9... Be4
{[%clk 0:02:30.3]} 10. Nc3 {[%clk 0:02:24.9]} 10... Bxh1 {[%clk 0:02:19.9]} 11.
Kc2 {[%clk 0:02:01.3]} 11... Bb4 {[%clk 0:02:01.6]} 12. Nh3 {[%clk 0:01:50.3]}
12... Qxh2 {[%clk 0:01:56.6]} 13. Ng5 {[%clk 0:01:40.5]} 13... Bxc3 {[%clk
0:01:50.3]} 14. bxc3 {[%clk 0:01:38.2]} 14... h6 {[%clk 0:01:48]} 15. Nxe6
{[%clk 0:01:31.2]} 15... fxe6 {[%clk 0:01:46.3]} 16. dxe6 {[%clk 0:01:32.1]}
16... Bf3 {[%clk 0:01:35.9]} 17. Kd3 {[%clk 0:01:18]} 17... Bxe2+ {[%clk
0:01:22.3]} 18. Qxe2 {[%clk 0:01:18.9]} 18... Qxe2+ {[%clk 0:01:18.5]} 19. Kxe2
{[%clk 0:01:19.8]} 19... Nc6 {[%clk 0:01:08.8]} 20. Bf4 {[%clk 0:01:14.1]} 20...
O-O-O {[%clk 0:01:07.4]} 21. d5 {[%clk 0:01:13.8]} 21... Na5 {[%clk 0:00:54.3]}
22. Kd3 {[%clk 0:01:13.7]} 22... h5 {[%clk 0:00:49.6]} 23. gxh5 {[%clk
0:01:11.7]} 23... Rxh5 {[%clk 0:00:49.6]} 24. Rg1 {[%clk 0:01:12.2]} 24... Nxc4
{[%clk 0:00:40.4]} 25. Rxg7 {[%clk 0:01:02.4]} 25... Nd6 {[%clk 0:00:38.9]} 26.
c4 {[%clk 0:01:02.4]} 26... Rf8 {[%clk 0:00:32.7]} 27. Bg3 {[%clk 0:00:39.9]}
27... b6 {[%clk 0:00:29.7]} 28. Kc3 {[%clk 0:00:27.8]} 28... Ne4+ {[%clk
0:00:24.2]} 29. Kb4 {[%clk 0:00:27.5]} 29... Nxg3 {[%clk 0:00:24.8]} 30. Rxg3
{[%clk 0:00:27.6]} 30... Rh4 {[%clk 0:00:23.5]} 31. Kb5 {[%clk 0:00:27]} 31...
Kb7 {[%clk 0:00:23.8]} 32. Rg7 {[%clk 0:00:23.5]} 32... Rff4 {[%clk 0:00:18.6]}
33. Kb4 {[%clk 0:00:11.2]} 33... Rxc4+ {[%clk 0:00:18.8]} 34. Kb3 {[%clk
0:00:11.7]} 34... Rcd4 {[%clk 0:00:17.9]} 35. Rd7 {[%clk 0:00:08]} 35... Rhe4
{[%clk 0:00:17.9]} 36. Kc3 {[%clk 0:00:05.8]} 36... Rd1 {[%clk 0:00:17.6]} 37.
e7 {[%clk 0:00:03.7]} 37... Rde1 {[%clk 0:00:11.5]} 38. d6 {[%clk 0:00:03.4]}
38... Kc6 {[%clk 0:00:12.1]} 39. Rd8 {[%clk 0:00:01.4]} 39... cxd6 {[%clk
0:00:11.8]} 40. Rc8+ {[%clk 0:00:02.3]} 40... Kd5 {[%clk 0:00:11.9]} 41. Ra8
{[%clk 0:00:03.2]} 41... Rxe7 {[%clk 0:00:12.1]} 42. Kd3 {[%clk 0:00:03.6]}
42... R1e2 {[%clk 0:00:11.2]} 43. Kc3 {[%clk 0:00:02.4]} 43... a5 {[%clk
0:00:11.7]} 44. Kb3 {[%clk 0:00:02.7]} 44... R7e3+ {[%clk 0:00:12]} 45. Ka4
{[%clk 0:00:03]} 45... Rxa2+ {[%clk 0:00:11.6]} 46. Kb5 {[%clk 0:00:02.9]} 46...
Rb3+ {[%clk 0:00:12.3]} 47. Ka6 {[%clk 0:00:03.8]} 47... a4 {[%clk 0:00:13]} 48.
Rh8 {[%clk 0:00:04.1]} 48... Re3 {[%clk 0:00:12.7]} 49. Rh5+ {[%clk 0:00:05]}
49... Re5 {[%clk 0:00:13]} 50. Rh3 {[%clk 0:00:05.9]} 50... a3 {[%clk
0:00:13.4]} 51. Kxb6 {[%clk 0:00:05.6]} 51... Rb2+ {[%clk 0:00:13.3]} 52. Ka7
{[%clk 0:00:05.9]} 52... a2 {[%clk 0:00:13.5]} 53. Ra3 {[%clk 0:00:06.3]} 53...
Re1 {[%clk 0:00:13]} 54. Ra5+ {[%clk 0:00:06.5]} 54... Ke6 {[%clk 0:00:13.7]}
55. Ka6 {[%clk 0:00:05.4]} 55... a1=Q {[%clk 0:00:13.5]} 0-1

[Event "Early-Titled-Tuesday-Blitz-May-28-2024"]
[Site "Chess.com"]
[Date "2024.05.28"]
[Round "10"]
[White "chrisclaireredfield"]
[Black "djokovic74"]
[Result "1-0"]
[WhiteElo "2572"]
[BlackElo "2723"]
[TimeControl "180+1"]
[EndTime "9:58:55 PDT"]
[Termination "chrisclaireredfield won by resignation"]

1. Nf3 {[%clk 0:03:00.9]} 1... Nf6 {[%clk 0:02:58.8]} 2. g3 {[%clk 0:03:00.3]}
2... e6 {[%clk 0:02:59.2]} 3. Bg2 {[%clk 0:03:00.6]} 3... d5 {[%clk 0:02:59.8]}
4. O-O {[%clk 0:03:00.8]} 4... Be7 {[%clk 0:02:59.6]} 5. d4 {[%clk 0:03:00.8]}
5... O-O {[%clk 0:03:00]} 6. c4 {[%clk 0:03:01.2]} 6... a5 {[%clk 0:02:59.9]} 7.
b3 {[%clk 0:02:57.3]} 7... a4 {[%clk 0:02:53.1]} 8. bxa4 {[%clk 0:02:54.2]} 8...
Bd7 {[%clk 0:02:35.4]} 9. Nc3 {[%clk 0:02:52.3]} 9... Ne4 {[%clk 0:02:29.8]} 10.
Nxe4 {[%clk 0:02:41.6]} 10... dxe4 {[%clk 0:02:30.7]} 11. Nd2 {[%clk 0:02:41.8]}
11... Bxa4 {[%clk 0:02:29.4]} 12. Nb3 {[%clk 0:02:42.1]} 12... f5 {[%clk
0:02:19.9]} 13. Bb2 {[%clk 0:02:37.4]} 13... Nc6 {[%clk 0:02:19.1]} 14. d5
{[%clk 0:02:34.2]} 14... Na5 {[%clk 0:02:15.4]} 15. Rc1 {[%clk 0:01:58.8]} 15...
exd5 {[%clk 0:01:42.3]} 16. Qxd5+ {[%clk 0:01:48]} 16... Qxd5 {[%clk 0:01:41.2]}
17. cxd5 {[%clk 0:01:48.4]} 17... Bd6 {[%clk 0:01:34.4]} 18. Nd4 {[%clk
0:01:45.3]} 18... Bd7 {[%clk 0:01:32.6]} 19. g4 {[%clk 0:01:09.6]} 19... g6
{[%clk 0:01:06]} 20. gxf5 {[%clk 0:01:09.3]} 20... gxf5 {[%clk 0:01:05.8]} 21.
Kh1 {[%clk 0:01:05]} 21... Kf7 {[%clk 0:00:44.1]} 22. Bh3 {[%clk 0:00:59.2]}
22... Be5 {[%clk 0:00:43.9]} 23. Ba1 {[%clk 0:00:53.6]} 23... Kf6 {[%clk
0:00:41.5]} 24. f4 {[%clk 0:00:49.3]} 24... exf3 {[%clk 0:00:38.6]} 25. Rxf3
{[%clk 0:00:47.6]} 25... Ke7 {[%clk 0:00:28]} 26. Nxf5+ {[%clk 0:00:31.5]} 26...
Bxf5 {[%clk 0:00:27.3]} 27. Bxe5 {[%clk 0:00:30.4]} 27... Be4 {[%clk 0:00:26.2]}
28. Rxc7+ {[%clk 0:00:28.9]} 28... Kd8 {[%clk 0:00:18.4]} 29. Rd7+ {[%clk
0:00:16.1]} 29... Ke8 {[%clk 0:00:18.3]} 30. Bd6 {[%clk 0:00:10.8]} 30... Bxf3+
{[%clk 0:00:14.2]} 31. exf3 {[%clk 0:00:11.2]} 31... Rf7 {[%clk 0:00:14.4]} 32.
Rxf7 {[%clk 0:00:06.7]} 32... Kxf7 {[%clk 0:00:15.3]} 33. Be6+ {[%clk
0:00:04.9]} 33... Kf6 {[%clk 0:00:15.1]} 34. Bb4 {[%clk 0:00:03.9]} 34... Nc4
{[%clk 0:00:13.3]} 35. a3 {[%clk 0:00:02.7]} 35... Ke5 {[%clk 0:00:04.6]} 36.
Kg2 {[%clk 0:00:02.6]} 36... Nxa3 {[%clk 0:00:04.4]} 37. Bc3+ {[%clk 0:00:02.3]}
37... Kd6 {[%clk 0:00:04.7]} 38. Bb4+ {[%clk 0:00:02.7]} 38... Kc7 {[%clk
0:00:05.3]} 39. d6+ {[%clk 0:00:02.6]} 39... Kc6 {[%clk 0:00:05.8]} 40. d7
{[%clk 0:00:03.1]} 40... Nb5 {[%clk 0:00:03.8]} 41. Be7 {[%clk 0:00:03]} 41...
Nc7 {[%clk 0:00:01.3]} 42. Bf5 {[%clk 0:00:02.7]} 42... Ra2+ {[%clk 0:00:01.2]}
43. Kg3 {[%clk 0:00:02.6]} 43... Rd2 {[%clk 0:00:01]} 44. d8=Q {[%clk
0:00:02.5]} 44... Rxd8 {[%clk 0:00:01.8]} 45. Bxd8 {[%clk 0:00:03.1]} 45... Na6
{[%clk 0:00:02.4]} 46. Bg5 {[%clk 0:00:03.4]} 46... b5 {[%clk 0:00:02.7]} 47.
Bxh7 {[%clk 0:00:03.9]} 47... b4 {[%clk 0:00:03.1]} 48. h4 {[%clk 0:00:04]}
48... b3 {[%clk 0:00:03.3]} 49. h5 {[%clk 0:00:04.5]} 49... Nc5 {[%clk
0:00:03.9]} 50. h6 {[%clk 0:00:04.7]} 50... Kd5 {[%clk 0:00:03.6]} 51. Bb1
{[%clk 0:00:04.6]} 51... Na4 {[%clk 0:00:03.3]} 52. h7 {[%clk 0:00:04.7]} 52...
Nc3 {[%clk 0:00:04.2]} 53. h8=Q {[%clk 0:00:04.1]} 53... Nxb1 {[%clk 0:00:05.1]}
54. Qb2 {[%clk 0:00:04.4]} 1-0

[Event "Early-Titled-Tuesday-Blitz-May-28-2024"]
[Site "Chess.com"]
[Date "2024.05.28"]
[Round "10"]
[White "secrethawk1"]
[Black "manitodeplomo"]
[Result "0-1"]
[WhiteElo "2411"]
[BlackElo "2555"]
[TimeControl "180+1"]
[EndTime "9:59:05 PDT"]
[Termination "manitodeplomo won by checkmate"]

1. d4 {[%clk 0:03:00.9]} 1... c5 {[%clk 0:02:56.9]} 2. c3 {[%clk 0:03:00.1]}
2... d5 {[%clk 0:02:55.6]} 3. Nf3 {[%clk 0:02:58.9]} 3... Nf6 {[%clk 0:02:53.1]}
4. Bf4 {[%clk 0:02:58.3]} 4... Qb6 {[%clk 0:02:35.6]} 5. Qb3 {[%clk 0:02:52.2]}
5... c4 {[%clk 0:02:34.1]} 6. Qxb6 {[%clk 0:02:43.9]} 6... axb6 {[%clk 0:02:35]}
7. a3 {[%clk 0:02:44.2]} 7... b5 {[%clk 0:02:24.7]} 8. Nbd2 {[%clk 0:02:45.1]}
8... Nc6 {[%clk 0:02:24.4]} 9. Rc1 {[%clk 0:02:42.8]} 9... h6 {[%clk 0:02:13.7]}
10. h3 {[%clk 0:02:38.2]} 10... Bf5 {[%clk 0:02:13.6]} 11. e3 {[%clk 0:02:32.6]}
11... e6 {[%clk 0:02:12.7]} 12. Bh2 {[%clk 0:02:27.9]} 12... Be7 {[%clk
0:01:59.3]} 13. Be2 {[%clk 0:02:24.5]} 13... Nd7 {[%clk 0:01:56.2]} 14. O-O
{[%clk 0:02:20.3]} 14... Nb6 {[%clk 0:01:55.1]} 15. Ne5 {[%clk 0:02:13.4]} 15...
Na4 {[%clk 0:01:42.2]} 16. f3 {[%clk 0:01:39.6]} 16... Nxe5 {[%clk 0:01:35]} 17.
Bxe5 {[%clk 0:01:38.6]} 17... f6 {[%clk 0:01:34.1]} 18. Bh2 {[%clk 0:01:31.5]}
18... Nxb2 {[%clk 0:01:30.9]} 19. e4 {[%clk 0:01:31.1]} 19... Bh7 {[%clk
0:01:19.3]} 20. Ra1 {[%clk 0:01:20.9]} 20... Na4 {[%clk 0:01:05.1]} 21. Rfc1
{[%clk 0:01:13.9]} 21... Kd7 {[%clk 0:01:02.5]} 22. Bg3 {[%clk 0:00:57.8]} 22...
Kc6 {[%clk 0:00:40.6]} 23. Be1 {[%clk 0:00:53.5]} 23... Nb6 {[%clk 0:00:36.9]}
24. Nb1 {[%clk 0:00:51.1]} 24... dxe4 {[%clk 0:00:34.4]} 25. fxe4 {[%clk
0:00:50.2]} 25... Bxe4 {[%clk 0:00:34.7]} 26. Bf3 {[%clk 0:00:50.8]} 26... Bxf3
{[%clk 0:00:34.2]} 27. gxf3 {[%clk 0:00:51.7]} 27... Nd5 {[%clk 0:00:30.7]} 28.
Bd2 {[%clk 0:00:49.4]} 28... e5 {[%clk 0:00:27.3]} 29. dxe5 {[%clk 0:00:40.3]}
29... fxe5 {[%clk 0:00:28.2]} 30. Be1 {[%clk 0:00:39.9]} 30... Rhd8 {[%clk
0:00:16.8]} 31. Nd2 {[%clk 0:00:35.2]} 31... Nf4 {[%clk 0:00:16.3]} 32. Rc2
{[%clk 0:00:34.3]} 32... Nxh3+ {[%clk 0:00:15.4]} 33. Kf1 {[%clk 0:00:33.4]}
33... Nf4 {[%clk 0:00:15.6]} 34. a4 {[%clk 0:00:31.4]} 34... Rxa4 {[%clk
0:00:11.7]} 35. Rxa4 {[%clk 0:00:30.6]} 35... bxa4 {[%clk 0:00:12.6]} 36. Nxc4
{[%clk 0:00:30.9]} 36... Bd6 {[%clk 0:00:08.5]} 37. Rd2 {[%clk 0:00:28.1]} 37...
b5 {[%clk 0:00:07.6]} 38. Nxe5+ {[%clk 0:00:26.2]} 38... Kc7 {[%clk 0:00:06.5]}
39. Nf7 {[%clk 0:00:25.2]} 39... Rd7 {[%clk 0:00:06.1]} 40. Nh8 {[%clk
0:00:17.1]} 40... g5 {[%clk 0:00:04.3]} 41. Rb2 {[%clk 0:00:14.7]} 41... Kc6
{[%clk 0:00:03.5]} 42. Ra2 {[%clk 0:00:12.3]} 42... Rh7 {[%clk 0:00:02.8]} 43.
c4 {[%clk 0:00:10.4]} 43... bxc4 {[%clk 0:00:02]} 44. Bc3 {[%clk 0:00:09.8]}
44... Rb7 {[%clk 0:00:02.6]} 45. Rxa4 {[%clk 0:00:08.1]} 45... Kd5 {[%clk
0:00:03.5]} 46. Ra5+ {[%clk 0:00:07.9]} 46... Bc5 {[%clk 0:00:04]} 47. Ra6
{[%clk 0:00:05.2]} 47... Nd3 {[%clk 0:00:04.1]} 48. Rxh6 {[%clk 0:00:05.3]}
48... Rb3 {[%clk 0:00:04.2]} 49. Bd2 {[%clk 0:00:03.3]} 49... Nf4 {[%clk
0:00:04.5]} 50. Bxf4 {[%clk 0:00:03.2]} 50... Rxf3+ {[%clk 0:00:05.1]} 51. Ke2
{[%clk 0:00:02.8]} 51... Rxf4 {[%clk 0:00:06]} 52. Ng6 {[%clk 0:00:02.7]} 52...
Re4+ {[%clk 0:00:05.3]} 53. Kd2 {[%clk 0:00:02.7]} 53... Bb4+ {[%clk 0:00:05.9]}
54. Kd1 {[%clk 0:00:02.1]} 54... Re1+ {[%clk 0:00:05.8]} 55. Kc2 {[%clk
0:00:02.2]} 55... Re2+ {[%clk 0:00:06.4]} 56. Kd1 {[%clk 0:00:02.4]} 56... Rd2+
{[%clk 0:00:06.6]} 57. Kc1 {[%clk 0:00:03]} 57... c3 {[%clk 0:00:06.7]} 58. Ne7+
{[%clk 0:00:02.5]} 58... Bxe7 {[%clk 0:00:06.7]} 59. Rg6 {[%clk 0:00:02]} 59...
Ba3+ {[%clk 0:00:07.2]} 60. Kb1 {[%clk 0:00:01.6]} 60... c2+ {[%clk 0:00:07.9]}
61. Ka2 {[%clk 0:00:01.6]} 61... c1=Q+ {[%clk 0:00:08.5]} 62. Kb3 {[%clk
0:00:01]} 62... Qb2+ {[%clk 0:00:09.1]} 63. Ka4 {[%clk 0:00:01.9]} 63... Qb4#
{[%clk 0:00:09.5]} 0-1

[Event "Early-Titled-Tuesday-Blitz-May-28-2024"]
[Site "Chess.com"]
[Date "2024.05.28"]
[Round "10"]
[White "Matsanovic"]
[Black "ImportedItalianMaple"]
[Result "0-1"]
[WhiteElo "2613"]
[BlackElo "2544"]
[TimeControl "180+1"]
[EndTime "9:59:07 PDT"]
[Termination "ImportedItalianMaple won by resignation"]

1. e4 {[%clk 0:03:00.9]} 1... c5 {[%clk 0:03:00.2]} 2. Nf3 {[%clk 0:03:00.3]}
2... a6 {[%clk 0:03:00.8]} 3. g3 {[%clk 0:02:59.7]} 3... b5 {[%clk 0:02:58.2]}
4. Bg2 {[%clk 0:02:59.4]} 4... Bb7 {[%clk 0:02:58.8]} 5. d3 {[%clk 0:02:59]}
5... e6 {[%clk 0:02:54.4]} 6. a4 {[%clk 0:02:57.8]} 6... Nc6 {[%clk 0:02:53.4]}
7. O-O {[%clk 0:02:55.5]} 7... g6 {[%clk 0:02:52.4]} 8. d4 {[%clk 0:02:41.2]}
8... cxd4 {[%clk 0:02:46.3]} 9. Nxd4 {[%clk 0:02:42.1]} 9... Bg7 {[%clk
0:02:44.7]} 10. Nb3 {[%clk 0:02:35.2]} 10... d6 {[%clk 0:02:33.8]} 11. axb5
{[%clk 0:02:32.6]} 11... axb5 {[%clk 0:02:33.9]} 12. Rxa8 {[%clk 0:02:33.2]}
12... Bxa8 {[%clk 0:02:34.4]} 13. Nc3 {[%clk 0:02:31.8]} 13... Qb8 {[%clk
0:02:27.9]} 14. Bf4 {[%clk 0:02:26.4]} 14... e5 {[%clk 0:02:27.7]} 15. Be3
{[%clk 0:02:23.4]} 15... Nge7 {[%clk 0:02:28]} 16. Nd5 {[%clk 0:02:16.3]} 16...
O-O {[%clk 0:02:24.6]} 17. Nxe7+ {[%clk 0:02:15]} 17... Nxe7 {[%clk 0:02:24.7]}
18. Qd2 {[%clk 0:02:12.4]} 18... Rd8 {[%clk 0:02:20.2]} 19. Bg5 {[%clk
0:02:00.8]} 19... f6 {[%clk 0:02:16.6]} 20. Be3 {[%clk 0:01:59.5]} 20... Bf8
{[%clk 0:02:10.4]} 21. Rd1 {[%clk 0:01:57.3]} 21... d5 {[%clk 0:02:10.2]} 22.
Bc5 {[%clk 0:01:54]} 22... d4 {[%clk 0:02:09.3]} 23. c3 {[%clk 0:01:48.7]} 23...
Nc6 {[%clk 0:01:18.7]} 24. Bxf8 {[%clk 0:01:47]} 24... Kxf8 {[%clk 0:01:19.6]}
25. cxd4 {[%clk 0:01:46.7]} 25... Nxd4 {[%clk 0:01:20.3]} 26. Nxd4 {[%clk
0:01:46.2]} 26... Rxd4 {[%clk 0:01:18.5]} 27. Qh6+ {[%clk 0:01:45.9]} 27... Kg8
{[%clk 0:01:18.4]} 28. Rxd4 {[%clk 0:01:46.2]} 28... exd4 {[%clk 0:01:18.7]} 29.
Qd2 {[%clk 0:01:38.8]} 29... Qd6 {[%clk 0:01:08.6]} 30. e5 {[%clk 0:01:32.5]}
30... Qa6 {[%clk 0:01:04.3]} 31. Bxa8 {[%clk 0:01:30.4]} 31... Qa1+ {[%clk
0:01:02.6]} 32. Kg2 {[%clk 0:01:26.2]} 32... Qxa8+ {[%clk 0:01:03.1]} 33. f3
{[%clk 0:01:12]} 33... fxe5 {[%clk 0:01:02.6]} 34. Qb4 {[%clk 0:01:04]} 34...
Qd5 {[%clk 0:00:40.7]} 35. h4 {[%clk 0:01:03.8]} 35... d3 {[%clk 0:00:39.9]} 36.
Qd2 {[%clk 0:01:01.9]} 36... e4 {[%clk 0:00:38.2]} 37. fxe4 {[%clk 0:01:01.3]}
37... Qxe4+ {[%clk 0:00:38.9]} 38. Kf2 {[%clk 0:01:02.1]} 38... Qd4+ {[%clk
0:00:36.6]} 39. Kf3 {[%clk 0:01:02.2]} 39... Kf7 {[%clk 0:00:32.9]} 40. b3
{[%clk 0:00:56.8]} 40... Ke6 {[%clk 0:00:27.3]} 41. Qe3+ {[%clk 0:00:55]} 41...
Kd5 {[%clk 0:00:25.7]} 42. Qe7 {[%clk 0:00:54.4]} 42... Qe5 {[%clk 0:00:15.3]}
43. Qd7+ {[%clk 0:00:49.4]} 43... Qd6 {[%clk 0:00:15.5]} 44. Qxb5+ {[%clk
0:00:40.4]} 44... Qc5 {[%clk 0:00:13]} 45. Qxd3+ {[%clk 0:00:39.8]} 45... Kc6
{[%clk 0:00:10.3]} 46. Qe4+ {[%clk 0:00:34.8]} 46... Kd6 {[%clk 0:00:08.4]} 47.
Qf4+ {[%clk 0:00:34]} 47... Kd7 {[%clk 0:00:06.4]} 48. Qf7+ {[%clk 0:00:32.3]}
48... Kd8 {[%clk 0:00:05.9]} 49. Qg8+ {[%clk 0:00:30.6]} 49... Ke7 {[%clk
0:00:04.9]} 50. Qxh7+ {[%clk 0:00:30.1]} 50... Kf6 {[%clk 0:00:04]} 51. Qh8+
{[%clk 0:00:30.3]} 51... Kf7 {[%clk 0:00:04.3]} 52. Qb2 {[%clk 0:00:21]} 52...
Qd5+ {[%clk 0:00:04]} 53. Kf2 {[%clk 0:00:20.1]} 53... Qc5+ {[%clk 0:00:04.1]}
54. Kg2 {[%clk 0:00:20.2]} 54... Qd5+ {[%clk 0:00:04.6]} 55. Kh2 {[%clk
0:00:20.6]} 55... Qb5 {[%clk 0:00:02.8]} 56. b4 {[%clk 0:00:19.6]} 56... Kg8
{[%clk 0:00:03.4]} 57. Qb3+ {[%clk 0:00:19.4]} 57... Kh7 {[%clk 0:00:04]} 58.
Qb2 {[%clk 0:00:19.2]} 58... Kg8 {[%clk 0:00:02.8]} 59. Kg2 {[%clk 0:00:18.8]}
59... Kh7 {[%clk 0:00:03.4]} 60. Qd2 {[%clk 0:00:17.3]} 60... Qc6+ {[%clk
0:00:03]} 61. Kh2 {[%clk 0:00:16.8]} 61... Qb5 {[%clk 0:00:03.7]} 62. Qe1 {[%clk
0:00:15.4]} 62... Kh6 {[%clk 0:00:03.4]} 63. Qe3+ {[%clk 0:00:14.9]} 63... Kh7
{[%clk 0:00:04.2]} 64. Qe7+ {[%clk 0:00:14.8]} 64... Kh6 {[%clk 0:00:04.4]} 65.
Qg5+ {[%clk 0:00:14.7]} 65... Kg7 {[%clk 0:00:04.7]} 66. Qe5+ {[%clk 0:00:14]}
66... Qxe5 {[%clk 0:00:04.8]} 67. h5 {[%clk 0:00:13.3]} 67... Qb2+ {[%clk
0:00:05.7]} 68. Kh3 {[%clk 0:00:13.3]} 68... Qxb4 {[%clk 0:00:06.6]} 69. hxg6
{[%clk 0:00:13.8]} 69... Kxg6 {[%clk 0:00:07.5]} 0-1

[Event "Early-Titled-Tuesday-Blitz-May-28-2024"]
[Site "Chess.com"]
[Date "2024.05.28"]
[Round "10"]
[White "TrahtarBelarus"]
[Black "Vesper2018"]
[Result "1-0"]
[WhiteElo "2780"]
[BlackElo "2576"]
[TimeControl "180+1"]
[EndTime "9:59:13 PDT"]
[Termination "TrahtarBelarus won on time"]

1. c4 {[%clk 0:03:00.9]} 1... Nf6 {[%clk 0:02:59.7]} 2. g3 {[%clk 0:03:00.8]}
2... g6 {[%clk 0:03:00.3]} 3. Bg2 {[%clk 0:03:00.9]} 3... Bg7 {[%clk 0:03:01]}
4. Nc3 {[%clk 0:03:01.3]} 4... O-O {[%clk 0:03:01.6]} 5. d4 {[%clk 0:03:01.8]}
5... d6 {[%clk 0:03:01.6]} 6. h3 {[%clk 0:03:02.3]} 6... Nc6 {[%clk 0:03:01.8]}
7. Nf3 {[%clk 0:03:01.5]} 7... e5 {[%clk 0:02:54.2]} 8. Be3 {[%clk 0:03:01.7]}
8... Bd7 {[%clk 0:02:25.7]} 9. O-O {[%clk 0:02:57.8]} 9... h6 {[%clk 0:02:09.3]}
10. dxe5 {[%clk 0:02:49.3]} 10... dxe5 {[%clk 0:02:06.4]} 11. Rc1 {[%clk
0:02:49]} 11... Qc8 {[%clk 0:02:06.1]} 12. Kh2 {[%clk 0:02:48.4]} 12... Re8
{[%clk 0:02:04.6]} 13. Nd5 {[%clk 0:02:43.1]} 13... Kh7 {[%clk 0:01:52.9]} 14.
Qd2 {[%clk 0:02:29.5]} 14... Ne4 {[%clk 0:01:51.6]} 15. Qc2 {[%clk 0:02:29.5]}
15... f5 {[%clk 0:01:51.3]} 16. Rfd1 {[%clk 0:02:26.3]} 16... Be6 {[%clk
0:01:46.3]} 17. b4 {[%clk 0:02:24.4]} 17... Ne7 {[%clk 0:01:29.7]} 18. Nh4
{[%clk 0:02:00.2]} 18... Nf6 {[%clk 0:01:22.4]} 19. Bc5 {[%clk 0:01:52]} 19...
Neg8 {[%clk 0:01:05.7]} 20. e4 {[%clk 0:01:26.2]} 20... fxe4 {[%clk 0:00:29.8]}
21. Bxe4 {[%clk 0:01:18.7]} 21... Nxe4 {[%clk 0:00:30.1]} 22. Qxe4 {[%clk
0:01:19.6]} 22... Bf5 {[%clk 0:00:30.5]} 23. Nxf5 {[%clk 0:01:19.2]} 23... gxf5
{[%clk 0:00:31]} 24. Qh4 {[%clk 0:01:15.9]} 24... c6 {[%clk 0:00:26]} 25. Ne3
{[%clk 0:01:15.1]} 25... Qe6 {[%clk 0:00:25.4]} 26. g4 {[%clk 0:00:39.5]} 26...
fxg4 {[%clk 0:00:24.7]} 27. Nxg4 {[%clk 0:00:39.7]} 27... b6 {[%clk 0:00:17.8]}
28. Rd6 {[%clk 0:00:25.8]} 28... Qf5 {[%clk 0:00:18.1]} 29. Be3 {[%clk
0:00:24.9]} 29... Re6 {[%clk 0:00:18.4]} 30. Rxe6 {[%clk 0:00:15.2]} 30... Qxe6
{[%clk 0:00:18.3]} 31. Rg1 {[%clk 0:00:15.1]} 31... Rf8 {[%clk 0:00:15.9]} 32.
c5 {[%clk 0:00:13.1]} 32... bxc5 {[%clk 0:00:13.9]} 33. Bxc5 {[%clk 0:00:14]}
33... Rf7 {[%clk 0:00:14.1]} 34. Be3 {[%clk 0:00:12.9]} 34... e4 {[%clk
0:00:13.5]} 35. Qh5 {[%clk 0:00:12.2]} 35... Rf5 {[%clk 0:00:13.2]} 36. Qh4
{[%clk 0:00:12]} 36... a6 {[%clk 0:00:11.3]} 37. a4 {[%clk 0:00:11.8]} 37... Rf3
{[%clk 0:00:07.7]} 38. Rg3 {[%clk 0:00:07.1]} 38... Rxg3 {[%clk 0:00:06.8]} 39.
Kxg3 {[%clk 0:00:07.6]} 39... Qb3 {[%clk 0:00:05.5]} 40. Qh5 {[%clk 0:00:05.9]}
40... Qd5 {[%clk 0:00:05.1]} 41. Qe8 {[%clk 0:00:04.6]} 41... h5 {[%clk
0:00:04.6]} 42. Nh2 {[%clk 0:00:04.6]} 42... Be5+ {[%clk 0:00:04.8]} 43. Kg2
{[%clk 0:00:04.8]} 43... Bf6 {[%clk 0:00:03.1]} 44. Nf1 {[%clk 0:00:05.1]} 44...
Qf5 {[%clk 0:00:03.3]} 45. Ng3 {[%clk 0:00:05.1]} 45... Qf3+ {[%clk 0:00:03.8]}
46. Kg1 {[%clk 0:00:05.8]} 46... Qd1+ {[%clk 0:00:03.4]} 47. Kh2 {[%clk
0:00:05.6]} 47... Qd6 {[%clk 0:00:03.2]} 48. Qxh5+ {[%clk 0:00:05.7]} 48... Kg7
{[%clk 0:00:03.4]} 49. Kg2 {[%clk 0:00:05.7]} 49... Ne7 {[%clk 0:00:03.5]} 50.
Nxe4 {[%clk 0:00:05.1]} 50... Qd5 {[%clk 0:00:02.6]} 51. Qh6+ {[%clk 0:00:05.1]}
51... Kg8 {[%clk 0:00:01.6]} 52. Qxf6 {[%clk 0:00:05.1]} 52... Qxe4+ {[%clk
0:00:02.2]} 53. Qf3 {[%clk 0:00:06]} 53... Qh7 {[%clk 0:00:02.1]} 54. Qg4+
{[%clk 0:00:06.4]} 54... Qg6 {[%clk 0:00:02.5]} 55. Bc5 {[%clk 0:00:06]} 55...
Qxg4+ {[%clk 0:00:02.1]} 56. hxg4 {[%clk 0:00:06.9]} 56... Nd5 {[%clk
0:00:02.9]} 57. Kg3 {[%clk 0:00:07.2]} 57... Nc3 {[%clk 0:00:03]} 58. a5 {[%clk
0:00:07.2]} 58... Ne4+ {[%clk 0:00:03.2]} 59. Kf4 {[%clk 0:00:07.9]} 59... Nd2
{[%clk 0:00:03.1]} 60. Ke5 {[%clk 0:00:08.2]} 60... Kf7 {[%clk 0:00:03.6]} 61.
Kd6 {[%clk 0:00:08.5]} 61... Ne4+ {[%clk 0:00:03.7]} 62. Kxc6 {[%clk 0:00:09.1]}
62... Nxf2 {[%clk 0:00:04.3]} 63. Bxf2 {[%clk 0:00:08.7]} 1-0